Workbook

Sheet Sheet1
E1: Reports | F1: Total Annual | G1: Est. No. of | H1: Est. Total | I1: Wage | J1: Cost to the
A2: Section of | C2: Form No. | D2: Est. No. of | E2: Filed | F2: Responses | G2: Man hours | H2: Man-hours | I2: Class (per | J2: Public
A3: Regulation | B3: Title | C3: (if Any) | D3: Respondents | E3: Annually | F3: (D) x (E) | G3: Per Response | H3: (F) x (G) | I3: hour) | J3: (H) x (I)
A5: (A) | B5: (B) | C5: (C) | D5: (D) | E5: (E) | F5: (F) | G5: (G) | H5: (H) | I5: (I) | J5: (J)
A6: NONE
B8: APPROVED WITH THIS DOCKET - REPORTING REQUIREMENTS - NON FORMS
A9: 2 CFR 200 | B9: SAMS Registration, Certifications and Representations | C9: Sam.gov | D9: 9 | E9: 1 | F9: =(D9)*(E9) -> 9 | G9: 2 | H9: =(F9)*(G9) -> 18 | I9: 83 | J9: =(H9)*(I9) -> 1,494
A10: 4274.320(b)(2)(xiv) - 100% of respondents are not-for-profit | B10: Operating plans for revolving line of credit | C10: written | D10: 25 | E10: 1 | F10: =(D10)*(E10) -> 25 | G10: 5 | H10: =(F10)*(G10) -> 125 | I10: 83 | J10: =(H10)*(I10) -> 10,375
A11: 4274.330(e) - 100% of respondents are not-for-profit | B11: Assignments of Security | C11: Written | D11: 5 | E11: 1 | F11: =(D11)*(E11) -> 5 | G11: 1.5 | H11: =(F11)*(G11) -> 8 | I11: 83 | J11: 623
A12: 4274.332(b)(3) - 100% of respondents are not-for-profit | B12: Jusitification for amount of reserve | C12: Written | D12: 15 | E12: 1 | F12: 15 | G12: 2 | H12: =(F12)*(G12) -> 30 | I12: 83 | J12: 2,490
A13: 4274.305(a) - 100% of respondents are not-for-profit | B13: Intergovernmental review comments | C13: written | D13: 80 | E13: 1 | F13: 80 | G13: 2 | H13: =(F13)*(G13) -> 160 | I13: 83 | J13: 13,280
A14: 4274.333(a)(7)(iv) and (7)(a) - 100% of respondents are not-for-profit | B14: Evidence of fidelity bond coverage | C14: written | D14: 140 | E14: 1 | F14: =(D14)*(E14) -> 140 | G14: 1.5 | H14: =(F14)*(G14) -> 210 | I14: 83 | J14: =(H14)*(I14) -> 17,430
A15: 4274.340(a)(1) - 100% of respondents are not-for-profit | B15: Workplan | C15: written | D15: 140 | E15: 1 | F15: =(D15)*(E15) -> 140 | G15: 18 | H15: =(F15)*(G15) -> 2520 | I15: 83 | J15: =(H15)*(I15) -> 209,160
A16: 4272.340(a)(1)(iii) - 100% of respondents are not-for-profit | B16: Certification of lack of financing | C16: written | D16: 140 | E16: 1 | F16: =(D16)*(E16) -> 140 | G16: 1.5 | H16: =(F16)*(G16) -> 210 | I16: 83 | J16: =(H16)*(I16) -> 17,430
A17: 4274.340(a)(11) - 100% of respondents are not-for-profit | B17: Credit elsewhere test | C17: written | D17: 140 | E17: 1 | F17: =(D17)*(E17) -> 140 | G17: 1 | H17: =(F17)*(G17) -> 140 | I17: 83 | J17: =(H17)*(I17) -> 11,620
A18: 4274.340(a)(1)(iv) - 100% of respondents are not-for-profit | B18: Goals for low-income counties | C18: written | D18: 37 | E18: 1 | F18: 37 | G18: 2 | H18: 74 | I18: 83 | J18: 6,142
A19: 4274.346 - 100% of respondents are not-for-profit | B19: Loan Closing Certifications | C19: written | D19: 140 | E19: 1 | F19: 140 | G19: 1 | H19: 140 | I19: 83 | J19: 11,620
A20: 4274.352(a)(1) - 100% of respondents are not-for-profit | B20: Certifications to make loans to ultimate recipients | C20: written | D20: 140 | E20: 1 | F20: 140 | G20: 1.5 | H20: 210 | I20: 83 | J20: 17,430
B21: Request for Appeal | C21: written | D21: 5 | E21: 1 | F21: 5 | G21: 2 | H21: 10 | I21: 83 | J21: 830
B22: SUBTOTAL | F22: =F9+F10+F11+F12+F13+F14+F15+F16+F17+F18+F19+F20+F21 -> 1,016 | H22: =H9+H10+H11+H12+H13+H14+H15+H16+H17+H18+H19+H20+H21 -> 3,855 | J22: =J9+J10+J11+J12+J13+J14+J15+J16+J17+J18+J19+J20+J21 -> 319,924
A24: 4274.340(a) - 100% of respondents are not-for-profit | B24: FORMS APPROVED WITH THIS DOCKET
A25: 4274.333 - 100% of respondents are not-for-profit | B25: Loan Agreement | C25: 4274-4 | D25: 27 | E25: 1 | F25: =D25*E25 -> 27 | G25: 1.5 | H25: =(F25)*(G25) -> 40.5 | I25: 83 | J25: =I25*H25 -> 3,362
A26: 4274.333 - 100% of respondents are not-for-profit | B26: Supplemental Loan Agreement | C26: 4274-5 | D26: 14 | E26: 1 | F26: =(D26)*(E26) -> 14 | G26: 1 | H26: 14 | I26: 83 | J26: =(H26)*(I26) -> 1,162
A27: 4274.333(a)(5) - 100% of respondents are not-for-profit | B27: Promissory Note | C27: 4274-3 | D27: 27 | E27: 1 | F27: 27 | G27: 1.5 | H27: 41 | I27: 83 | J27: 3,362
B28: Application for Loan (IRP) | C28: 4274-1 | D28: 140 | E28: 1 | F28: 140 | G28: 56 | H28: 7,840 | I28: 83 | J28: 650,720
B29: SUBTOTAL | F29: =F25+F26+F27+F28 -> 208 | H29: =H25+H26+H27+H28 -> 7,935 | J29: =J25+J26+J27+J28 -> 658,605
A30: 4274.340(a) - 100% of respondents are not-for-profit | B30: *FORMS APPROVED UNDER OTHER OMB DOCKET
A31: 4274.345 - 100% of respondents are not-for-profit | B31: Letter of Intent to Meet Conditions | C31: 1942-46 (0575-0015)
A32: 4274.305(b) - 100% of respondents are not-for-profit | B32: Request for Environmental Information | C32: 1970-A, Exhibit H
A33: 4274.333(b)(4)(ii) - 100% of respondents are not-for-profit | B33: Report of IRP/RDLF | C33: 1951-4 (0570-0015)/LINC
A34: 4274.340(a) - 100% of respondents are not-for-profit | B34: Assurance Agreement | C34: 400-4 (0575-0018)
A35: 4274.340(a) - 100% of respondents are not-for-profit | B35: Deposit Agreement | C35: 402-1 (0575-0158)
A36: 4274.340(a) - 100% of respondents are not-for-profit | B36: Compliance Review | C36: 400-8 (0575-0018)
B37: TOTAL (*not included in total of the Forms Approved Under Other OMB Docket) | F37: =F22+F29 -> 1,224 | H37: =H22+H29 -> 11,790 | J37: =J22+J29 -> 978,529
